[Event "Portugal Open 2019"]
[Site "Lisbon"]
[Date "2019.02.02"]
[Round "1.5"]
[White "Xu, Xiangyu"]
[Black "Fernandes, Ricardo Paulos"]
[Result "1-0"]
[ECO "E73"]
[WhiteElo "2565"]
[BlackElo "2015"]
[Annotator "RC"]
[PlyCount "59"]
[EventDate "2019.01.25"]
[EventType "swiss"]
[EventCountry "POR"]
[SourceTitle "playchess.com"]
[Source "ChessBase"]
[SourceQuality "1"]
[TimeControl "5400+30"]

1. d4 {[%emt 0:00:00]} Nf6 {[%emt 0:00:00]} 2. c4 {[%emt 0:00:00]} g6 {[%emt 0:00:00]} 3. Nc3 {[%emt 0:00:00]} Bg7 4. e4 d6 {[%emt 0:00:42]} 5. Be2 {[%emt 0:00:34]} O-O {[%emt 0:00:07]} 6. Bg5 {[%emt 0:00:15]} Nbd7 {[%emt 0:00:22]} 7. Qd2 {[%emt 0:03:38]} c5 8. d5 a6 {[%emt 0:06:19]} 9. Nf3 {[%emt 0:05:51]} Qa5 10. O-O Re8 {[%emt 0:08:50]} 11. Rfe1 {[%emt 0:01:24]} Rb8 {[%emt 0:01:16]} 12. a4 {[%emt 0:00:57]} Qc7 {[%emt 0:01:09]} 13. h3 {[%emt 0:04:41]} Ne5 {[%emt 0:03:27]} 14. Nxe5 {[%emt 0:05:37]} dxe5 {[%emt 0:00:05]} 15. a5 {[%emt 0:00:29]} Qd6 {[%emt 0:02:02]} 16. Bd1 {[%emt 0:06:06]} Nd7 {[%emt 0:07:17]} 17. Bc2 {[%emt 0:26:40]} b5 {[%emt 0:02:16]} 18. axb6 {[%emt 0:01:54]} Nxb6 {[%emt 0:01:11]} 19. b3 {[%emt 0:00:28]} f5 {[%emt 0:02:01]} 20. exf5 {[%emt 0:03:28]} gxf5 {[%emt 0:00:05]} 21. Ra5 {[%emt 0:00:18]} h6 {[%emt 0:02:50]} 22. Be3 {[%emt 0:00:53]} Qf6 {[%emt 0:03:19]} 23. Rxc5 {[%emt 0:11:40]} f4 {[%emt 0:00:47]} 24. Qd3 {[%emt 0:00:06]} fxe3 {[%emt 0:09:34]} 25. Qh7+ {[%emt 0:00:58]} Kf8 {[%emt 0:00:06]} 26. fxe3 {[%emt 0:00:08]} Nd7 {[%emt 0:01:23]} 27. Rc6 {[%emt 0:00:09]} Qh4 {[%emt 0:00:06]} 28. Rg6 {[%emt 0:00:24]} Qxe1+ {[%emt 0:03:55]} 29. Kh2 {[%emt 0:00:03]} Rd8 {[%emt 0:00:15]} 30. Rxg7 {[%emt 0:00:04]} 1-0

[Event "Portugal Open 2019"]
[Site "Lisbon"]
[Date "2019.02.02"]
[Round "1.11"]
[White "Stefansson, Hannes"]
[Black "Myrheim, Hakon Abeland"]
[Result "1-0"]
[ECO "B30"]
[WhiteElo "2514"]
[BlackElo "1993"]
[Annotator "RC"]
[PlyCount "41"]
[EventDate "2019.01.25"]
[EventType "swiss"]
[EventCountry "POR"]
[SourceTitle "playchess.com"]
[Source "ChessBase"]
[SourceQuality "1"]
[TimeControl "5400+30"]

1. e4 {[%emt 0:00:00]} c5 {[%emt 0:00:00]} 2. Nf3 {[%emt 0:00:00]} Nc6 {[%emt 0:00:00]} 3. Bb5 {[%emt 0:00:38]} Nf6 {[%emt 0:00:00]} 4. e5 {[%emt 0:00:42]} Nd5 {[%emt 0:00:00]} 5. Nc3 {[%emt 0:00:41]} Nc7 {[%emt 0:00:42]} 6. Bxc6 {[%emt 0:00:35]} dxc6 {[%emt 0:00:07]} 7. h3 {[%emt 0:01:38]} Bf5 {[%emt 0:03:19]} 8. d3 {[%emt 0:01:43]} e6 {[%emt 0:01:12]} 9. Bg5 {[%emt 0:02:50]} Qd7 {[%emt 0:05:31]} 10. O-O {[%emt 0:06:52]} h6 {[%emt 0:02:14]} 11. Bh4 {[%emt 0:01:35]} g5 {[%emt 0:01:31]} 12. Bg3 {[%emt 0:00:06]} Be7 {[%emt 0:03:00]} 13. Nd2 {[%emt 0:05:21]} h5 {[%emt 0:05:14]} 14. Nce4 {[%emt 0:00:25]} O-O-O {[%emt 0:11:36]} 15. Nc4 {[%emt 0:00:49]} Bxe4 {[%emt 0:02:33]} 16. dxe4 {[%emt 0:00:06]} Qxd1 {[%emt 0:02:25]} 17. Raxd1 {[%emt 0:00:09]} Rd4 {[%emt 0:06:41]} 18. Nd6+ Bxd6 {[%emt 0:00:13]} 19. exd6 {[%emt 0:01:12]} Ne8 {[%emt 0:01:42]} 20. Be5 {[%emt 0:00:55]} Rxd1 {[%emt 0:00:08]} 21. Rxd1 {[%emt 0:00:07]} 1-0

[Event "Portugal Open 2019"]
[Site "Lisbon"]
[Date "2019.02.02"]
[Round "1.17"]
[White "Terrieux, Kevin"]
[Black "Taranin, Konstantin"]
[Result "1-0"]
[ECO "E70"]
[WhiteElo "2459"]
[BlackElo "1976"]
[Annotator "RC"]
[PlyCount "75"]
[EventDate "2019.01.25"]
[EventType "swiss"]
[EventCountry "POR"]
[SourceTitle "playchess.com"]
[Source "ChessBase"]
[SourceQuality "1"]
[TimeControl "5400+30"]

1. d4 {[%emt 0:00:00]} Nf6 {[%emt 0:00:00]} 2. c4 {[%emt 0:00:03]} g6 {[%emt 0:00:00]} 3. Nc3 {[%emt 0:00:18]} Bg7 {[%emt 0:00:00]} 4. e4 {[%emt 0:00:06]} O-O {[%emt 0:00:00]} 5. Nge2 {[%emt 0:00:06]} d6 {[%emt 0:00:07]} 6. Ng3 {[%emt 0:00:08]} Nc6 {[%emt 0:02:25]} 7. d5 {[%emt 0:02:11]} Ne5 {[%emt 0:02:44]} 8. Be2 {[%emt 0:07:13]} b6 {[%emt 0:03:17]} 9. Be3 {[%emt 0:07:28]} Ba6 {[%emt 0:05:42]} 10. b3 {[%emt 0:00:16]} Rc8 {[%emt 0:07:23]} 11. Rc1 {[%emt 0:02:07]} c6 {[%emt 0:03:22]} 12. h3 {[%emt 0:01:39]} cxd5 {[%emt 0:12:47]} 13. exd5 {[%emt 0:03:56]} b5 {[%emt 0:02:29]} 14. cxb5 {[%emt 0:02:26]} Qa5 {[%emt 0:04:48]} 15. O-O {[%emt 0:17:21]} Bb7 {[%emt 0:04:04]} 16. Qd4 {[%emt 0:01:22]} Nxd5 {[%emt 0:03:39]} 17. Nxd5 {[%emt 0:00:42]} Rxc1 {[%emt 0:05:00]} 18. Nxe7+ {[%emt 0:03:43]} Kh8 {[%emt 0:00:05]} 19. Rxc1 {[%emt 0:00:05]} Nf3+ {[%emt 0:01:55]} 20. Bxf3 {[%emt 0:00:08]} Bxd4 {[%emt 0:00:06]} 21. Bxd4+ {[%emt 0:00:05]} f6 {[%emt 0:00:10]} 22. Bxb7 {[%emt 0:00:17]} Qd2 {[%emt 0:05:45]} 23. Be3 {[%emt 0:01:12]} Qxa2 {[%emt 0:00:16]} 24. Bd5 {[%emt 0:01:24]} Qa5 {[%emt 0:05:12]} 25. Bc4 {[%emt 0:00:29]} Re8 {[%emt 0:11:26]} 26. Nd5 {[%emt 0:00:08]} Qa3 {[%emt 0:05:15]} 27. Rd1 {[%emt 0:00:08]} Rxe3 {[%emt 0:03:29]} 28. Nxe3 {[%emt 0:00:51]} f5 {[%emt 0:00:54]} 29. Ne2 {[%emt 0:00:18]} Kg7 {[%emt 0:02:10]} 30. Nd4 {[%emt 0:00:53]} h6 {[%emt 0:04:17]} 31. g3 {[%emt 0:00:56]} Qb4 {[%emt 0:02:28]} 32. Nc6 {[%emt 0:00:57]} Qa3 {[%emt 0:00:27]} 33. Nd8 {[%emt 0:00:15]} Kf6 {[%emt 0:01:27]} 34. Nd5+ {[%emt 0:00:32]} Kg7 {[%emt 0:01:02]} 35. Re1 {[%emt 0:00:40]} Qa5 {[%emt 0:01:37]} 36. Re7+ {[%emt 0:00:06]} Kg8 {[%emt 0:01:10]} 37. Nf6+ {[%emt 0:00:10]} Kf8 {[%emt 0:00:30]} 38. Rf7# {[%emt 0:00:06]} 1-0

[Event "Portugal Open 2019"]
[Site "Lisbon"]
[Date "2019.02.02"]
[Round "1.20"]
[White "Roque, Armando Filipe"]
[Black "Damaso, Rui"]
[Result "0-1"]
[ECO "E70"]
[WhiteElo "1946"]
[BlackElo "2439"]
[Annotator "RC"]
[PlyCount "148"]
[EventDate "2019.01.25"]
[EventType "swiss"]
[EventCountry "POR"]
[SourceTitle "playchess.com"]
[Source "ChessBase"]
[SourceQuality "1"]
[TimeControl "5400+30"]

1. d4 Nf6 2. c4 g6 3. Nc3 Bg7 4. e4 O-O 5. Be2 c5 6. d5 b5 7. cxb5 a6 8. a4 axb5 9. Bxb5 e6 10. Be3 exd5 11. exd5 d6 12. h3 Na6 13. Nf3 Nc7 14. O-O Nxb5 15. axb5 Bb7 16. Qd2 Qd7 17. Rad1 Rfe8 18. Qd3 Nh5 19. Rfe1 f5 20. Ng5 Bf6 21. Ne6 Ng7 22. Nxg7 Kxg7 23. Qd2 Kf7 24. Bf4 Bd4 25. Rxe8 Rxe8 26. Re1 Rxe1+ 27. Qxe1 Bf6 28. Qd2 Qd8 29. Qe2 Bc8 30. Qc2 Qe7 31. Qe2 Qd8 32. Qc4 g5 33. Bd2 Qa5 34. Kh2 Qa1 35. Qe2 Qxb2 36. Nd1 Qe5+ 37. Qxe5 Bxe5+ 38. g3 Kf6 39. f4 gxf4 40. gxf4 Bd4 41. Nc3 Ke7 42. Kg2 c4 43. Ne2 Bb6 44. Bb4 Bb7 45. Nc3 Be3 46. Kf3 Bd2 47. Kg3 Be1+ 48. Kf3 Kd7 49. Ke2 Bg3 50. Kf3 Bh4 51. Ba5 Bf6 52. Ke3 Bg7 53. Bb4 Bc8 54. Ba5 Bf6 55. Ne2 Bb7 56. Nc3 Ba8 57. Bb4 Kc7 58. Ba5+ Kb8 59. Bb4 Ka7 60. Ba5 Bb7 61. Kd2 Kb8 62. Bb6 Bc8 63. Be3 Bd7 64. Kc2 Be8 65. Kd2 Bh5 66. Bf2 Bf3 67. h4 Kb7 68. Kc2 Bd8 69. Kd2 Ba5 70. Kc2 Bb6 71. Be1 Bd4 72. Kd2 Kb6 73. Bg3 Kc5 74. Kc2 Bxd5 0-1

[Event "Portugal Open 2019"]
[Site "Lisbon"]
[Date "2019.02.02"]
[Round "1.26"]
[White "Casagrande, Federico"]
[Black "Rajesh, V A V"]
[Result "0-1"]
[ECO "D70"]
[WhiteElo "1911"]
[BlackElo "2406"]
[Annotator "RC"]
[PlyCount "140"]
[EventDate "2019.01.25"]
[EventType "swiss"]
[EventCountry "POR"]
[SourceTitle "playchess.com"]
[Source "ChessBase"]
[SourceQuality "1"]
[TimeControl "5400+30"]

1. d4 {[%emt 0:01:05]} Nf6 {[%emt 0:00:00]} 2. c4 {[%emt 0:00:05]} g6 {[%emt 0:00:00]} 3. Nf3 {[%emt 0:00:09]} Bg7 {[%emt 0:00:00]} 4. Nc3 {[%emt 0:00:05]} d5 {[%emt 0:00:01]} 5. g3 {[%emt 0:02:49]} O-O {[%emt 0:00:39]} 6. Bg2 {[%emt 0:00:28]} c6 {[%emt 0:05:25]} 7. cxd5 {[%emt 0:09:44]} cxd5 {[%emt 0:00:06]} 8. O-O {[%emt 0:00:27]} Ne4 {[%emt 0:01:08]} 9. Qb3 {[%emt 0:03:08]} Nc6 {[%emt 0:03:40]} 10. Rd1 {[%emt 0:02:15]} e6 {[%emt 0:00:21]} 11. Bf4 {[%emt 0:10:39]} g5 {[%emt 0:07:21]} 12. Nxe4 {[%emt 0:07:10]} gxf4 {[%emt 0:00:07]} 13. Nc3 {[%emt 0:03:56]} fxg3 {[%emt 0:00:26]} 14. hxg3 {[%emt 0:00:07]} f5 {[%emt 0:00:26]} 15. e3 {[%emt 0:11:26]} Qe7 {[%emt 0:03:23]} 16. Ne2 Bd7 {[%emt 0:01:58]} 17. Rac1 {[%emt 0:05:47]} Na5 {[%emt 0:02:04]} 18. Qc3 {[%emt 0:07:29]} b6 {[%emt 0:01:52]} 19. b3 {[%emt 0:03:09]} Rac8 {[%emt 0:00:45]} 20. Qb2 {[%emt 0:01:21]} Nc6 {[%emt 0:02:38]} 21. Rd3 {[%emt 0:02:37]} Rfd8 {[%emt 0:03:44]} 22. Nf4 {[%emt 0:01:32]} Bf8 {[%emt 0:01:54]} 23. Rdc3 {[%emt 0:01:21]} Qa3 {[%emt 0:02:11]} 24. Qe2 {[%emt 0:02:53]} Qe7 {[%emt 0:05:12]} 25. Nh4 {[%emt 0:05:33]} Qf7 {[%emt 0:05:45]} 26. Qh5 {[%emt 0:02:48]} Qxh5 {[%emt 0:05:03]} 27. Nxh5 {[%emt 0:00:02]} Ba3 {[%emt 0:01:16]} 28. Rb1 {[%emt 0:06:06]} Nb4 {[%emt 0:04:29]} 29. Rxc8 {[%emt 0:00:15]} Bxc8 {[%emt 0:00:03]} 30. Nf3 {[%emt 0:03:08]} h6 {[%emt 0:06:44]} 31. Ne5 {[%emt 0:01:15]} Kf8 {[%emt 0:01:29]} 32. Bf1 {[%emt 0:02:41]} Bd7 {[%emt 0:00:45]} 33. Kg2 {[%emt 0:01:05]} Ke7 {[%emt 0:01:33]} 34. Nxd7 {[%emt 0:02:44]} Rxd7 {[%emt 0:00:31]} 35. Bb5 {[%emt 0:00:14]} Rc7 {[%emt 0:00:31]} 36. Nf4 {[%emt 0:00:33]} Nxa2 {[%emt 0:01:09]} 37. Rh1 {[%emt 0:00:33]} Bd6 {[%emt 0:00:20]} 38. Rxh6 {[%emt 0:00:10]} Bxf4 {[%emt 0:00:06]} 39. gxf4 {[%emt 0:00:08]} Nc1 {[%emt 0:01:31]} 40. b4 {[%emt 0:01:07]} Na2 {[%emt 0:00:18]} 41. Kg3 {[%emt 0:00:09]} Nxb4 {[%emt 0:00:10]} 42. Kh4 {[%emt 0:00:33]} a6 {[%emt 0:00:21]} 43. Bf1 {[%emt 0:00:40]} b5 {[%emt 0:01:54]} 44. Kg5 {[%emt 0:00:27]} Nc6 {[%emt 0:02:09]} 45. Rh7+ {[%emt 0:00:38]} Kd6 {[%emt 0:00:07]} 46. Rh8 {[%emt 0:00:03]} Rg7+ {[%emt 0:00:54]} 47. Kf6 {[%emt 0:00:29]} Rg1 {[%emt 0:00:07]} 48. Bd3 {[%emt 0:00:32]} Rd1 {[%emt 0:00:20]} 49. Bc2 {[%emt 0:00:35]} Rd2 {[%emt 0:01:30]} 50. Bb1 {[%emt 0:00:02]} Rb2 {[%emt 0:00:08]} 51. Bd3 {[%emt 0:00:06]} Nb4 {[%emt 0:00:42]} 52. Bf1 {[%emt 0:02:44]} Rxf2 {[%emt 0:00:06]} 53. Bxb5 {[%emt 0:00:03]} axb5 {[%emt 0:00:09]} 54. Rb8 {[%emt 0:00:03]} Nc6 {[%emt 0:00:27]} 55. Rxb5 {[%emt 0:00:11]} Rh2 {[%emt 0:00:07]} 56. Rb1 {[%emt 0:00:37]} Rh6+ {[%emt 0:00:08]} 57. Kg5 {[%emt 0:00:06]} Rh3 {[%emt 0:00:07]} 58. Re1 {[%emt 0:00:32]} Ke7 {[%emt 0:00:05]} 59. Kg6 {[%emt 0:00:25]} Rg3+ {[%emt 0:00:06]} 60. Kh5 {[%emt 0:00:08]} Kf6 {[%emt 0:00:11]} 61. Kh4 {[%emt 0:00:07]} Rg4+ {[%emt 0:00:36]} 62. Kh3 {[%emt 0:00:08]} Nd8 {[%emt 0:00:24]} 63. Rb1 {[%emt 0:00:18]} Nf7 {[%emt 0:00:06]} 64. Rb6 {[%emt 0:00:15]} Rg1 {[%emt 0:00:05]} 65. Kh2 {[%emt 0:00:33]} Re1 {[%emt 0:00:04]} 66. Rb3 {[%emt 0:00:10]} Nh6 {[%emt 0:00:07]} 67. Kg3 {[%emt 0:00:05]} Ng4 {[%emt 0:00:38]} 68. Kf3 {[%emt 0:00:08]} Kg6 {[%emt 0:00:05]} 69. Ra3 {[%emt 0:00:05]} Kh5 {[%emt 0:00:06]} 70. Rb3 {[%emt 0:00:43]} Rxe3+ {[%emt 0:00:06]} 0-1

[Event "Portugal Open 2019"]
[Site "Lisbon"]
[Date "2019.02.02"]
[Round "1.31"]
[White "Kaasen, Tor Fredrik"]
[Black "Morais, Vitor"]
[Result "1-0"]
[ECO "A34"]
[WhiteElo "2387"]
[BlackElo "1898"]
[Annotator "NA RC"]
[PlyCount "93"]
[EventDate "2019.01.25"]
[EventType "swiss"]
[EventCountry "POR"]
[SourceTitle "playchess.com"]
[Source "ChessBase"]
[SourceQuality "1"]
[TimeControl "5400+30"]

1. c4 {[%emt 0:00:00]} c5 {[%emt 0:00:00]} 2. Nc3 {[%emt 0:00:12]} Nf6 {[%emt 0:00:00]} 3. Nf3 {[%emt 0:00:05]} d5 {[%emt 0:00:00]} 4. cxd5 {[%emt 0:01:33]} Nxd5 {[%emt 0:00:00]} 5. e4 {[%emt 0:03:20]} Nxc3 {[%emt 0:00:47]} 6. bxc3 {[%emt 0:00:43]} g6 {[%emt 0:00:14]} 7. d4 {[%emt 0:01:21]} Bg7 {[%emt 0:00:05]} 8. Be3 {[%emt 0:00:19]} O-O {[%emt 0:00:13]} 9. Be2 {[%emt 0:00:42]} Nc6 {[%emt 0:00:14]} 10. O-O {[%emt 0:02:49]} cxd4 {[%emt 0:00:10]} 11. cxd4 {[%emt 0:00:05]} Bg4 {[%emt 0:00:11]} 12. d5 {[%emt 0:00:34]} Na5 {[%emt 0:01:35]} 13. Bd4 {[%emt 0:04:09]} b6 {[%emt 0:00:10]} 14. Bxg7 {[%emt 0:01:43]} Kxg7 {[%emt 0:00:10]} 15. Qd4+ {[%emt 0:00:06]} Kg8 {[%emt 0:00:25]} 16. e5 {[%emt 0:01:08]} Bc8 {[%emt 0:02:20]} 17. Rad1 {[%emt 0:01:18]} Bb7 {[%emt 0:00:21]} 18. Rd2 {[%emt 0:02:50]} Rc8 {[%emt 0:00:10]} 19. Ng5 {[%emt 0:03:49]} h6 {[%emt 0:03:29]} 20. Ne4 {[%emt 0:02:40]} Kh7 {[%emt 0:00:12]} 21. h4 {[%emt 0:00:52]} f5 {[%emt 0:00:44]} 22. exf6 {[%emt 0:01:28]} exf6 {[%emt 0:00:10]} 23. h5 {[%emt 0:00:21]} f5 {[%emt 0:00:22]} 24. hxg6+ {[%emt 0:03:15]} Kxg6 {[%emt 0:00:08]} 25. Ng3 {[%emt 0:00:21]} Qf6 {[%emt 0:02:46]} 26. Qf4 {[%emt 0:03:07]} Rcd8 {[%emt 0:03:22]} 27. Nxf5 {[%emt 0:02:35]} Qg5 {[%emt 0:03:10]} 28. Qxg5+ {[%emt 0:03:30]} Kxg5 {[%emt 0:00:10]} 29. Ne3 {[%emt 0:00:13]} Rd6 {[%emt 0:00:58]} 30. g3 {[%emt 0:00:23]} Rfd8 {[%emt 0:03:12]} 31. f4+ {[%emt 0:00:32]} Kf6 {[%emt 0:00:28]} 32. Kf2 {[%emt 0:00:27]} a6 {[%emt 0:02:50]} 33. Rh1 {[%emt 0:01:31]} Rh8 {[%emt 0:00:23]} 34. Bf3 {[%emt 0:01:05]} b5 {[%emt 0:00:46]} 35. Rc2 {[%emt 0:00:39]} Rd7 {[%emt 0:00:43]} 36. Rh5 {[%emt 0:00:52]} Kg6 {[%emt 0:02:29]} 37. Be4+ {[%emt 0:01:44]} Kf7 {[%emt 0:01:22]} 38. Bf5 {[%emt 0:01:06]} Rd6 {[%emt 0:01:52]} 39. Rc7+ {[%emt 0:00:15]} Ke8 {[%emt 0:00:12]} 40. Be6 {[%emt 0:01:13]} Kd8 {[%emt 0:01:04]} 41. Rc1 {[%emt 0:00:23]} Rb6 {[%emt 0:01:47]} 42. g4 {[%emt 0:01:32]} Nc4 {[%emt 0:00:35]} 43. Nxc4 {[%emt 0:02:16]} bxc4 {[%emt 0:00:09]} 44. Rxc4 {[%emt 0:00:24]} Rb2+ {[%emt 0:00:11]} 45. Ke3 {[%emt 0:00:07]} Rxa2 {[%emt 0:00:17]} 46. Rb4 {[%emt 0:00:29]} Kc7 {[%emt 0:01:13]} 47. d6+ {[%emt 0:00:04]} 1-0

[Event "Portugal Open 2019"]
[Site "Lisbon"]
[Date "2019.02.02"]
[Round "1.33"]
[White "Low, Zhen Yu Cyrus"]
[Black "Mabille, Natacha"]
[Result "1-0"]
[ECO "C50"]
[WhiteElo "2377"]
[BlackElo "1896"]
[Annotator "NA RC"]
[PlyCount "43"]
[EventDate "2019.01.25"]
[EventType "swiss"]
[EventCountry "POR"]
[SourceTitle "playchess.com"]
[Source "ChessBase"]
[SourceQuality "1"]
[TimeControl "5400+30"]

1. e4 {[%emt 0:00:00]} e5 {[%emt 0:00:00]} 2. Nf3 {[%emt 0:00:00]} Nc6 {[%emt 0:00:15]} 3. Bc4 {[%emt 0:00:00]} Bc5 {[%emt 0:01:53]} 4. O-O {[%emt 0:00:04]} Nf6 {[%emt 0:00:21]} 5. d3 {[%emt 0:00:05]} d6 {[%emt 0:00:40]} 6. c3 {[%emt 0:00:09]} Bg4 {[%emt 0:03:43]} 7. Nbd2 {[%emt 0:00:32]} O-O {[%emt 0:01:49]} 8. Re1 {[%emt 0:00:33]} a6 {[%emt 0:02:21]} 9. Bb3 {[%emt 0:00:06]} Ba7 10. Nf1 {[%emt 0:01:09]} Be6 {[%emt 0:11:27]} 11. Bc2 {[%emt 0:01:10]} Ng4 {[%emt 0:03:39]} 12. d4 {[%emt 0:11:59]} Bd7 {[%emt 0:44:43]} 13. h3 {[%emt 0:01:13]} Nf6 {[%emt 0:01:06]} 14. Ng3 {[%emt 0:01:16]} Re8 {[%emt 0:04:10]} 15. Be3 {[%emt 0:01:39]} Qe7 {[%emt 0:09:42]} 16. Qd2 {[%emt 0:02:20]} Qf8 {[%emt 0:03:11]} 17. Bg5 {[%emt 0:01:00]} Kh8 {[%emt 0:04:18]} 18. Bxf6 {[%emt 0:01:53]} gxf6 {[%emt 0:00:06]} 19. Nh5 {[%emt 0:00:12]} Qe7 {[%emt 0:00:26]} 20. Qh6 {[%emt 0:01:04]} Rg8 {[%emt 0:00:05]} 21. Nxf6 {[%emt 0:01:00]} Rg7 {[%emt 0:00:08]} 22. Ng5 {[%emt 0:00:13]} 1-0

[Event "Portugal Open 2019"]
[Site "Lisbon"]
[Date "2019.02.02"]
[Round "1.34"]
[White "Damasceno, Jorge"]
[Black "Di Nicolantonio, Lucas"]
[Result "0-1"]
[ECO "A89"]
[WhiteElo "1890"]
[BlackElo "2364"]
[Annotator "NA RC"]
[PlyCount "40"]
[EventDate "2019.01.25"]
[EventType "swiss"]
[EventCountry "POR"]
[SourceTitle "playchess.com"]
[Source "ChessBase"]
[SourceQuality "1"]
[TimeControl "5400+30"]

1. Nf3 {[%emt 0:00:00]} g6 {[%emt 0:00:00]} 2. d4 {[%emt 0:00:00]} Bg7 {[%emt 0:00:01]} 3. c4 {[%emt 0:00:17]} f5 {[%emt 0:01:06]} 4. Nc3 {[%emt 0:00:50]} Nf6 {[%emt 0:00:12]} 5. g3 {[%emt 0:00:56]} d6 {[%emt 0:00:39]} 6. Bg2 {[%emt 0:00:32]} O-O {[%emt 0:00:07]} 7. O-O {[%emt 0:00:04]} Nc6 {[%emt 0:00:31]} 8. d5 {[%emt 0:01:33]} Ne5 {[%emt 0:00:08]} 9. Nxe5 {[%emt 0:07:35]} dxe5 {[%emt 0:00:42]} 10. e4 {[%emt 0:00:52]} f4 {[%emt 0:00:58]} 11. b3 {[%emt 0:11:24]} g5 {[%emt 0:01:50]} 12. Bb2 {[%emt 0:02:30]} a6 {[%emt 0:07:06]} 13. Qc2 {[%emt 0:05:06]} Qe8 {[%emt 0:02:44]} 14. Rfe1 {[%emt 0:01:27]} Qh5 {[%emt 0:03:31]} 15. d6 {[%emt 0:08:03]} exd6 {[%emt 0:03:06]} 16. Nd5 {[%emt 0:00:52]} f3 {[%emt 0:02:50]} 17. Nxf6+ {[%emt 0:02:22]} Rxf6 {[%emt 0:00:10]} 18. Qd1 {[%emt 0:01:06]} Bg4 {[%emt 0:05:15]} 19. h3 {[%emt 0:04:40]} Bxh3 {[%emt 0:01:21]} 20. Bf1 {[%emt 0:00:41]} Bxf1 {[%emt 0:00:28]} 0-1

[Event "Portugal Open 2019"]
[Site "Lisbon"]
[Date "2019.02.02"]
[Round "1.36"]
[White "Nikula, Mikko"]
[Black "Rocha, Sergio"]
[Result "0-1"]
[ECO "B07"]
[WhiteElo "1889"]
[BlackElo "2354"]
[Annotator "RC"]
[PlyCount "100"]
[EventDate "2019.01.25"]
[EventType "swiss"]
[EventCountry "POR"]
[SourceTitle "playchess.com"]
[Source "ChessBase"]
[SourceQuality "1"]
[TimeControl "5400+30"]

1. e4 d6 2. d4 Nf6 3. Nc3 a6 4. Be3 g6 5. Qd2 Nbd7 6. f3 b5 7. a4 b4 8. Nd1 Rb8 9. c3 bxc3 10. bxc3 c5 11. Bd3 Qa5 12. Ne2 Bg7 13. O-O O-O 14. Nf2 Nb6 15. Rfb1 Be6 16. d5 Bd7 17. Qa2 Rfc8 18. c4 Ne8 19. Bd2 Qxa4 20. Nc3 Qxa2 21. Rxa2 Nc7 22. Rab2 Nca8 23. Ra2 Bxc3 24. Bxc3 Na4 25. Nd1 Rxb1 26. Bxb1 Rb8 27. Bc2 Nxc3 28. Nxc3 Nc7 29. Ba4 Bxa4 30. Rxa4 Rb3 31. Ne2 {[%emt 1:36:53]} Kf8 32. Kf2 Ke8 {[%emt 1:06:35]} 33. Ke1 Kd7 34. Kd2 Rb2+ 35. Kd3 Kc8 36. g3 Kb7 37. h4 Na8 38. Ra1 Nb6 39. f4 Nxc4 40. Nc3 {[%emt 0:06:51]} Nb6 {[%emt 0:05:35]} 41. e5 {[%emt 0:01:32]} Rg2 {[%emt 0:04:09]} 42. Ne4 {[%emt 0:01:50]} Nxd5 {[%emt 0:01:03]} 43. exd6 {[%emt 0:00:19]} Nb4+ {[%emt 0:00:17]} 44. Kc4 {[%emt 0:00:27]} exd6 {[%emt 0:00:27]} 45. Nxd6+ {[%emt 0:00:13]} Kb6 {[%emt 0:01:17]} 46. Nc8+ {[%emt 0:02:17]} Kc7 {[%emt 0:04:24]} 47. Kxc5 {[%emt 0:00:33]} Kxc8 {[%emt 0:02:20]} 48. Kxb4 {[%emt 0:00:08]} Rxg3 {[%emt 0:00:06]} 49. Rxa6 {[%emt 0:00:18]} Kd7 {[%emt 0:00:35]} 50. h5 {[%emt 0:02:25]} Rg4 {[%emt 0:00:21]} 0-1

[Event "Portugal Open 2019"]
[Site "Lisbon"]
[Date "2019.02.02"]
[Round "1.38"]
[White "Newton, Andrew"]
[Black "Plichta, Kamil"]
[Result "1-0"]
[ECO "B07"]
[WhiteElo "1883"]
[BlackElo "2347"]
[Annotator "NA RC"]
[PlyCount "73"]
[EventDate "2019.01.25"]
[EventType "swiss"]
[EventCountry "POR"]
[SourceTitle "playchess.com"]
[Source "ChessBase"]
[SourceQuality "1"]
[TimeControl "5400+30"]

1. e4 {[%emt 0:00:00]} d6 {[%emt 0:00:09]} 2. d4 {[%emt 0:00:00]} Nf6 {[%emt 0:00:07]} 3. Nc3 {[%emt 0:00:00]} g6 {[%emt 0:00:07]} 4. Bg5 {[%emt 0:00:23]} c6 {[%emt 0:03:09]} 5. Qd2 {[%emt 0:07:22]} Nbd7 {[%emt 0:01:33]} 6. O-O-O {[%emt 0:05:17]} b5 {[%emt 0:02:54]} 7. e5 {[%emt 0:09:44]} b4 {[%emt 0:01:57]} 8. exf6 {[%emt 0:03:06]} bxc3 {[%emt 0:02:56]} 9. Qxc3 {[%emt 0:04:53]} Nxf6 {[%emt 0:02:25]} 10. Bxf6 {[%emt 0:04:37]} exf6 {[%emt 0:00:48]} 11. Qxc6+ {[%emt 0:00:47]} Bd7 {[%emt 0:00:07]} 12. Re1+ {[%emt 0:00:12]} Be7 {[%emt 0:00:06]} 13. Qxd6 {[%emt 0:08:43]} Kf8 {[%emt 0:00:14]} 14. Qd5 {[%emt 0:09:37]} Be6 {[%emt 0:10:44]} 15. Qxd8+ {[%emt 0:01:17]} Rxd8 {[%emt 0:00:07]} 16. Nf3 {[%emt 0:01:43]} Bd5 {[%emt 0:02:22]} 17. Rd1 {[%emt 0:06:40]} g5 {[%emt 0:02:37]} 18. c4 {[%emt 0:02:49]} Be4 {[%emt 0:01:23]} 19. d5 {[%emt 0:06:28]} Bc5 {[%emt 0:02:09]} 20. Nd2 {[%emt 0:03:15]} Bg6 {[%emt 0:01:30]} 21. f3 {[%emt 0:00:30]} Kg7 {[%emt 0:01:59]} 22. Ne4 {[%emt 0:02:17]} Be3+ {[%emt 0:00:06]} 23. Kc2 {[%emt 0:00:41]} h5 {[%emt 0:02:10]} 24. Bd3 {[%emt 0:02:20]} h4 {[%emt 0:00:21]} 25. Rhe1 {[%emt 0:01:05]} Bf4 {[%emt 0:01:23]} 26. h3 f5 {[%emt 0:02:39]} 27. Nc3 {[%emt 0:01:57]} Bd6 28. a3 {[%emt 0:02:02]} Kf6 {[%emt 0:00:51]} 29. Nb5 {[%emt 0:01:40]} Bg3 {[%emt 0:00:38]} 30. Re2 {[%emt 0:00:19]} Rd7 {[%emt 0:01:15]} 31. b4 {[%emt 0:01:23]} Be5 {[%emt 0:03:05]} 32. Rde1 {[%emt 0:01:39]} Bg3 {[%emt 0:00:02]} 33. Re8 {[%emt 0:00:48]} Bxe1 {[%emt 0:02:38]} 34. Rxh8 {[%emt 0:00:05]} Bf2 {[%emt 0:04:11]} 35. Re8 {[%emt 0:01:38]} f4 {[%emt 0:00:40]} 36. Nc3 {[%emt 0:01:12]} Be3 {[%emt 0:00:27]} 37. c5 {[%emt 0:01:47]} 1-0